bitfinex/quotes_ETHUSD_20240915
["timestamp","ask_amount","ask_price","bid_price","bid_amount"]
[1726407674031,4.13178,2420.3,2419.9,0.86270677]
[1726407674224,0.10390912,2420.0,2419.9,0.86270677]
[1726407674426,4.13178,2420.3,2419.9,0.86270677]
[1726407674668,0.10390912,2420.0,2419.9,0.86270677]
[1726407674830,4.13178,2420.3,2419.9,0.86270677]
[1726407675031,0.10390912,2420.0,2419.9,0.86270677]
[1726407675232,5.91739101,2420.3,2419.9,0.86270677]
[1726407675463,0.10390912,2420.0,2419.9,0.86270677]
[1726407675649,4.13178,2420.3,2419.9,0.86270677]
[1726407675854,0.10390912,2420.0,2419.9,0.86270677]
[1726407676023,4.13178,2420.3,2419.9,0.86270677]
[1726407676232,0.10390912,2420.0,2419.9,0.86270677]
[1726407677293,4.13178,2420.3,2419.9,0.86270677]
[1726407677474,0.10398159,2420.0,2419.9,0.86270677]
[1726407677667,4.13178,2420.3,2419.9,0.86270677]
[1726407677829,0.10398159,2420.0,2419.9,0.86270677]
[1726407678162,4.13178,2420.3,2419.9,0.86270677]
[1726407678375,0.64346801,2420.2,2419.9,0.86270677]
[1726407678546,0.10407172,2420.1,2419.9,0.86270677]
[1726407679146,4.13178,2420.3,2419.9,0.86270677]
[1726407679147,0.10398159,2420.0,2419.9,0.86270677]
[1726407679336,4.13178,2420.3,2419.9,0.86270677]
[1726407679531,0.10416184,2420.2,2419.9,0.86270677]
[1726407679787,4.13178,2420.3,2420.0,2.2885]
[1726407679980,11.42143,2420.5,2420.0,3.7063215]
[1726407680149,11.42143,2420.5,2420.0,4.56902827]
[1726407680346,11.42143,2420.5,2420.0,5.56860895]
[1726407680552,0.1043428,2420.4,2420.0,5.56860895]
[1726407681298,0.1043428,2420.4,2420.0,9.70081895]
[1726407681623,0.1043428,2420.4,2420.2,1.4178215]
[1726407681823,0.1043428,2420.4,2420.3,2.2885]
[1726407681990,4.13112,2420.7,2420.3,2.2885]
[1726407682193,0.10447667,2420.6,2420.3,2.2885]
[1726407682499,0.10447667,2420.6,2420.4,1.4178215]
[1726407682701,0.10447667,2420.6,2420.5,2.2885]
[1726407682903,7.29,2420.9,2420.5,2.2885]
[1726407683221,6.38335,2421.1,2420.5,3.15120677]
[1726407683505,0.10470179,2421.0,2420.5,3.15120677]
[1726407683713,0.10470179,2421.0,2420.5,2.2885]
[1726407684118,4.23525179,2421.0,2420.5,3.15120677]
[1726407684427,4.23525179,2421.0,2420.5,2.2885]
[1726407686314,2.2626,2420.8,2420.4,0.86270677]
[1726407686616,0.10443155,2420.7,2420.3,3.12940677]
[1726407686813,2.31260005,2420.8,2420.3,3.12940677]
[1726407686814,2.2626,2420.8,2420.3,3.12940677]
[1726407687112,0.10427982,2420.7,2420.3,3.12940677]
[1726407687419,2.2626,2420.8,2420.3,3.12940677]
[1726407687572,0.10427982,2420.7,2420.3,3.12940677]
[1726407687770,2.2626,2420.8,2420.3,3.12940677]
[1726407687972,0.10430163,2420.7,2420.3,3.12940677]
[1726407688168,2.2626,2420.8,2420.3,3.12940677]
[1726407688409,0.10430163,2420.7,2420.3,3.12940677]
[1726407688614,2.2626,2420.8,2420.3,3.12940677]
[1726407688779,0.10451897,2420.7,2420.3,3.12940677]
[1726407688979,2.2626,2420.8,2420.3,2.99858477]
[1726407689320,0.10451897,2420.7,2420.3,2.99858477]
[1726407689674,6.44350005,2420.8,2420.3,0.86270677]
[1726407689914,0.10442888,2420.6,2420.3,0.86270677]
[1726407690117,0.10451897,2420.7,2420.3,0.86270677]
[1726407690413,6.44350005,2420.8,2420.3,0.86270677]
[1726407690618,1.16198617,2420.7,2420.3,0.86270677]
[1726407690771,5.29309617,2420.7,2420.3,0.86270677]
[1726407691916,5.29309617,2420.7,2420.3,3.12940677]
[1726407692774,5.29309617,2420.7,2420.3,2.2667]
[1726407692974,5.29309617,2420.7,2420.3,3.12940677]
[1726407693714,5.29309617,2420.7,2420.3,2.2667]
[1726407694091,5.29309617,2420.7,2420.3,3.12940677]
[1726407695277,5.29309617,2420.7,2420.3,2.2667]
[1726407695917,5.29309617,2420.7,2420.3,3.12940677]
[1726407696421,5.29309617,2420.7,2420.3,2.2667]
[1726407697819,5.29309617,2420.7,2420.3,3.12940677]
[1726407697981,5.29309617,2420.7,2420.3,2.2667]
[1726407698718,5.29309617,2420.7,2420.3,3.12940677]
[1726407698907,1.16198617,2420.7,2420.3,3.12940677]
[1726407699077,0.10456517,2420.7,2420.3,2.2667]
[1726407699278,0.10456517,2420.7,2420.4,1.4178215]
[1726407699493,6.3935,2420.8,2420.4,1.4178215]
[1726407699714,0.10447508,2420.6,2420.4,1.4178215]
[1726407699916,6.3935,2420.8,2420.4,1.4178215]
[1726407700119,0.10438498,2420.5,2420.4,1.4178215]
[1726407700275,6.3935,2420.8,2420.4,1.4178215]
[1726407700479,0.1045028,2420.5,2420.4,1.4178215]
[1726407700714,6.3935,2420.8,2420.4,1.4178215]
[1726407700924,0.1045005,2420.5,2420.4,1.4178215]
[1726407701120,6.3935,2420.8,2420.4,1.4178215]
[1726407701328,0.1045005,2420.5,2420.4,1.4178215]
[1726407701490,6.3935,2420.8,2420.4,1.4178215]
[1726407701698,0.1045005,2420.5,2420.4,1.4178215]
[1726407702023,4.1309,2420.8,2420.5,2.2667]
[1726407702194,0.10431403,2420.7,2420.6,1.4178215]
[1726407702403,5.11709313,2421.0,2420.6,1.4178215]
[1726407702599,0.10449419,2420.9,2420.6,1.4178215]
[1726407703012,4.23521419,2420.9,2420.5,2.2667]
[1726407703699,4.23521419,2420.9,2420.5,2.2658633]
[1726407704229,5.44670497,2420.9,2420.5,2.2658633]
[1726407705595,1.26598492,2420.9,2420.5,2.2658633]
[1726407705831,0.10449419,2420.9,2420.5,2.2658633]
[1726407706001,4.28523424,2420.9,2420.5,2.2658633]
[1726407707295,4.23523419,2420.9,2420.5,2.2658633]
[1726407708888,4.23523419,2420.9,2420.6,1.4178215]
[1726407709335,0.10449419,2420.9,2420.6,1.4178215]
[1726407710485,0.10449419,2420.9,2420.8,1.4178215]
[1726407710924,0.0397016,2421.2,2420.8,1.4178215]
[1726407711122,0.10446795,2420.9,2420.8,1.4178215]
[1726407711330,0.0397016,2421.2,2420.8,1.4178215]
[1726407711629,6.40686,2421.1,2420.7,2.474]
[1726407711835,0.10455802,2421.0,2420.7,2.474]
[1726407713728,0.10455802,2421.0,2420.4,5.42579849]
[1726407713729,4.23518802,2421.0,2420.4,7.46818677]
[1726407714030,0.10455802,2421.0,2420.4,13.01743827]
[1726407714192,0.10455802,2421.0,2420.4,14.47947347]
[1726407714591,0.10455802,2421.0,2420.5,0.86270677]
[1726407715214,0.10455802,2421.0,2420.4,14.47947347]
[1726407715385,0.10455802,2421.0,2420.5,2.44008597]
[1726407717921,4.28509807,2421.0,2420.5,2.44008597]
[1726407718114,4.28509807,2421.0,2420.5,0.86270677]
[1726407719603,0.15455807,2421.0,2420.6,2.28052827]
[1726407720025,0.15455807,2421.0,2420.6,1.4178215]
[1726407720536,0.15455807,2421.0,2420.6,2.28052827]
[1726407721310,0.15455807,2421.0,2420.6,1.4178215]
[1726407721511,0.15455807,2421.0,2420.6,2.28052827]
[1726407721842,0.10455802,2421.0,2420.6,2.28052827]
[1726407722135,0.10455802,2421.0,2420.7,2.474]
[1726407722913,0.10455802,2421.0,2420.7,3.33670677]
[1726407723300,0.10455802,2421.0,2420.7,2.474]
[1726407723530,0.10455802,2421.0,2420.7,3.33670677]
[1726407724219,0.10455802,2421.0,2420.7,2.474]
[1726407724426,0.10455802,2421.0,2420.7,3.33670677]
[1726407726650,0.10455802,2421.0,2420.8,0.86270677]
[1726407727215,0.10455802,2421.0,2420.7,3.33670677]
[1726407727449,0.10455802,2421.0,2420.8,0.86270677]
[1726407730257,0.10455802,2421.0,2420.7,3.33670677]
[1726407730564,0.10455802,2421.0,2420.8,0.86270677]
[1726407734371,0.10455802,2421.0,2420.9,4.99339677]
[1726407734547,0.0397016,2421.2,2420.9,4.99339677]
[1726407734745,0.10504295,2421.0,2420.9,0.86270677]
[1726407734990,2.4241,2421.1,2420.9,0.86270677]
[1726407735179,0.1050545,2421.0,2420.9,0.86270677]
[1726407736388,0.1050545,2421.0,2420.8,0.86270677]
[1726407738775,0.41194016,2421.0,2420.7,0.86270677]
[1726407739081,0.41194016,2421.0,2420.6,1.29431849]
[1726407739082,0.41194016,2421.0,2420.8,0.86270677]
[1726407739299,2.4241,2420.9,2420.8,0.86270677]
[1726407739663,2.52939789,2420.9,2420.8,0.86270677]
[1726407740482,0.10529789,2420.9,2420.8,3.16400677]
[1726407740862,4.13048,2421.1,2420.8,3.16400677]
[1726407741063,0.10537871,2421.0,2420.8,3.16400677]
[1726407743714,0.10537871,2421.0,2420.8,0.86270677]
[1726407746173,0.10537871,2421.0,2420.9,0.86270677]
[1726407746369,0.0397016,2421.2,2420.9,3.73920171]
[1726407746614,0.0397016,2421.2,2421.0,0.86334353]
[1726407747372,0.10171633,2421.1,2421.0,0.86334353]
[1726407748511,0.10171633,2421.1,2421.0,3.29924353]
[1726407748809,0.10171633,2421.1,2421.0,4.48606056]
[1726407749175,0.10171633,2421.1,2421.0,3.62271703]
[1726407749373,0.10171633,2421.1,2421.0,7.36135672]
[1726407749575,0.10171633,2421.1,2421.0,3.62271703]
[1726407749769,0.10171633,2421.1,2421.0,6.17468899]
[1726407750388,0.10171633,2421.1,2421.0,6.17442997]
[1726407750591,0.10171633,2421.1,2421.0,2.4359]
[1726407750919,0.10171633,2421.1,2421.0,6.17460797]
[1726407751618,0.10171633,2421.1,2421.0,10.30512797]
[1726407751820,0.10171633,2421.1,2421.0,12.0631016]
[1726407752487,0.10171633,2421.1,2421.0,8.32439363]
[1726407752695,0.10171633,2421.1,2421.0,12.06306724]
[1726407753420,0.10171633,2421.1,2421.0,4.19387363]
[1726407753607,0.10171633,2421.1,2421.0,7.93265001]
[1726407754824,0.10171633,2421.1,2420.9,1.29431849]
[1726407755179,0.10171633,2421.1,2421.0,3.73893191]
[1726407755378,0.10171633,2421.1,2421.0,3.73882277]
[1726407756439,0.10171633,2421.1,2421.0,3.73883567]
[1726407757149,0.10171633,2421.1,2421.0,3.73887644]
[1726407757308,0.10171633,2421.1,2420.9,1.29431849]
[1726407758513,0.10171633,2421.1,2421.0,0.86319558]
[1726407759020,0.10171633,2421.1,2421.0,0.86320713]
[1726407760562,0.10171633,2421.1,2420.9,1.29431849]
[1726407760741,0.10171633,2421.1,2421.0,3.73858212]
[1726407761056,0.10171633,2421.1,2421.0,0.86319314]
[1726407761358,0.10171633,2421.1,2421.0,12.65448871]
[1726407761509,0.10171633,2421.1,2421.0,11.36017022]
[1726407761708,0.10171633,2421.1,2421.0,13.086227]
[1726407766132,0.10171633,2421.1,2421.0,8.955707]
[1726407771546,2.57991633,2421.1,2421.0,3.73788331]
[1726407771963,2.57991633,2421.1,2420.9,1.29379063]
[1726407772242,0.10171633,2421.1,2421.0,3.73644169]
[1726407773477,0.10171633,2421.1,2421.0,5.15426319]
[1726407779392,0.10171633,2421.1,2421.0,3.86047256]
[1726407779758,0.10171633,2421.1,2421.0,5.58652934]
[1726407779959,0.10171633,2421.1,2421.0,3.86047256]
[1726407782051,0.10171633,2421.1,2421.0,5.15466419]
[1726407783087,0.10171633,2421.1,2421.0,3.73684269]
[1726407783492,0.10171633,2421.1,2421.0,2.44265106]
[1726407785388,0.10171633,2421.1,2421.0,4.16870784]
[1726407786197,0.10171633,2421.1,2421.0,5.58652934]
[1726407788772,0.10171633,2421.1,2421.0,6.99971466]
[1726407789463,0.10171633,2421.1,2421.0,5.27365788]
[1726407790002,0.10171633,2421.1,2421.0,7.00017629]
[1726407790160,0.10171633,2421.1,2421.0,5.58699097]
[1726407790360,0.10171633,2421.1,2421.0,6.0182809]
[1726407790993,0.10171633,2421.1,2421.0,3.86047256]
[1726407791309,0.10171633,2421.1,2421.0,6.0182809]
[1726407793942,0.10171633,2421.1,2421.0,6.01937069]
[1726407798538,0.10171633,2421.1,2421.0,3.86047256]
[1726407798836,0.10171633,2421.1,2421.0,6.01985833]
[1726407803377,0.10171633,2421.1,2421.0,4.27479893]
[1726407803677,0.10171633,2421.1,2421.0,6.02028079]
[1726407805881,0.10171633,2421.1,2421.0,7.33321334]
[1726407807336,0.10171633,2421.1,2421.0,7.9798767]
[1726407808179,0.10171633,2421.1,2421.0,7.33321334]
[1726407808672,0.10171633,2421.1,2421.0,6.91889289]
[1726407808849,0.10171633,2421.1,2421.0,7.56555577]
[1726407809045,0.10171633,2421.1,2421.0,7.97101501]
[1726407809763,0.10171633,2421.1,2421.0,7.32435213]
[1726407809931,0.10171633,2421.1,2421.0,7.9710131]
[1726407810136,0.10171633,2421.1,2421.0,7.32435213]
[1726407810880,0.10171633,2421.1,2421.0,7.97101271]
[1726407811087,0.10171633,2421.1,2421.0,7.32435213]
[1726407811237,0.10171633,2421.1,2421.0,7.97101496]
[1726407811667,0.10171633,2421.1,2421.0,7.32435213]
[1726407812085,0.10171633,2421.1,2421.0,7.5655573]
[1726407812372,0.10171633,2421.1,2421.0,7.9709995]
[1726407812800,0.10171633,2421.1,2421.0,7.97101687]
[1726407814163,0.10171633,2421.1,2421.0,5.90651823]
[1726407815816,0.10171633,2421.1,2421.0,5.00875922]
[1726407816667,0.10171633,2421.1,2421.0,4.60324215]
[1726407817126,0.10171633,2421.1,2421.0,2.44265106]
[1726407817284,0.10171633,2421.1,2421.0,4.60318565]
[1726407817464,0.10171633,2421.1,2421.0,2.44265106]
[1726407817908,0.10171633,2421.1,2421.0,4.60334319]
[1726407818697,0.10171633,2421.1,2421.0,2.44265106]
[1726407818898,0.10171633,2421.1,2421.0,4.60493207]
[1726407819108,0.10171633,2421.1,2421.0,4.17236837]
[1726407819109,6.74848812,2421.1,2421.0,4.17236837]
[1726407819275,6.74848812,2421.1,2421.0,3.73995598]
[1726407819276,10.87883812,2421.1,2421.0,3.73995598]
[1726407819476,10.87883812,2421.1,2421.0,0.86465052]
[1726407820362,6.40532,2421.0,2420.9,0.86465052]
[1726407820561,7.63585631,2421.0,2420.9,0.86465052]
[1726407820761,11.76637631,2421.0,2420.9,0.86465052]
[1726407821229,4.13069,2420.9,2420.8,0.86465052]
[1726407821429,2.2748,2420.8,2420.7,1.29730492]
[1726407821648,2.36354353,2420.8,2420.7,3.74430417]
[1726407822170,2.36354353,2420.8,2420.7,0.86434536]
[1726407822352,3.55109887,2420.8,2420.7,0.86434536]
[1726407823827,7.68195887,2420.8,2420.7,0.86434536]
[1726407824054,6.40583,2420.7,2420.6,0.86434536]
[1726407824263,7.81460889,2420.7,2420.5,0.86434536]
[1726407824555,7.90326004,2420.7,2420.5,0.86434536]
[1726407826261,7.90326004,2420.7,2420.4,0.86434536]
[1726407826461,2.36345115,2420.7,2420.5,0.86434536]
[1726407827485,2.36345115,2420.7,2420.4,0.86434536]
[1726407827948,6.49453115,2420.7,2420.4,0.86434536]
[1726407833095,6.49453115,2420.7,2420.3,0.86434536]
[1726407833386,7.55707127,2420.7,2420.3,0.86434536]
[1726407838616,6.38881,2420.6,2420.2,2.28216686]
[1726407838945,6.47666099,2420.6,2420.3,0.86434536]
[1726407840633,6.47666099,2420.6,2420.4,1.4178215]
[1726407841709,2.34545099,2420.6,2420.4,1.4178215]
[1726407841905,0.08785099,2420.6,2420.4,2.02538868]
[1726407842148,0.08785099,2420.6,2420.4,2.88973404]
[1726407842446,0.08785099,2420.6,2420.4,2.28216686]
[1726407842621,0.08785099,2420.6,2420.4,1.4178215]
[1726407844330,0.08785099,2420.6,2420.4,2.28216686]
[1726407844847,4.13105,2420.7,2420.4,2.28216686]
[1726407845154,0.08550397,2420.6,2420.4,2.28216686]
[1726407845467,4.13087,2420.8,2420.4,2.28216686]
[1726407845764,0.08541391,2420.5,2420.4,2.28216686]
[1726407845915,4.13087,2420.8,2420.4,3.30292104]
[1726407846243,4.13087,2420.8,2420.4,2.28216686]
[1726407846439,0.08559403,2420.7,2420.4,2.28216686]
[1726407846641,4.13087,2420.8,2420.4,2.28216686]
[1726407846859,0.08559403,2420.7,2420.4,2.28216686]
[1726407847065,4.13087,2420.8,2420.4,2.28216686]
[1726407847579,0.08559316,2420.7,2420.4,2.28216686]
[1726407847736,4.13087,2420.8,2420.4,2.28216686]
[1726407848248,0.08559316,2420.7,2420.4,2.28216686]
[1726407848449,4.13087,2420.8,2420.4,2.28216686]
[1726407848649,0.08559316,2420.7,2420.4,2.28216686]
[1726407848862,4.13087,2420.8,2420.4,2.28216686]
[1726407849079,0.08559316,2420.7,2420.4,2.28216686]
[1726407849283,0.08559316,2420.7,2420.5,2.3825]
[1726407849577,4.13087,2420.8,2420.5,3.24684536]
[1726407849785,0.08550311,2420.6,2420.4,2.28216686]
[1726407850003,4.13087,2420.8,2420.5,0.86434536]
[1726407851582,4.13061,2421.0,2420.6,3.8003215]
[1726407851968,8.26124,2421.0,2420.6,3.8003215]
[1726407852174,4.21644245,2420.9,2420.6,2.3825]
[1726407852391,4.21644245,2420.9,2420.5,0.86434536]
[1726407853459,4.21644245,2420.9,2420.6,0.86434536]
[1726407858748,0.08571245,2420.9,2420.6,0.86434536]
[1726407859146,4.21641245,2420.9,2420.6,0.86434536]
[1726407859348,4.21641245,2420.9,2420.7,0.86434536]
[1726407862396,4.21641245,2420.9,2420.8,0.86434536]
[1726407863943,0.08571245,2420.9,2420.8,0.86434536]
[1726407865556,0.08571245,2420.9,2420.7,1.29730492]
[1726407867688,0.08571245,2420.9,2420.8,3.74531736]
[1726407868798,0.08571245,2420.9,2420.7,1.29730492]
[1726407871317,0.08571245,2420.9,2420.8,3.74632402]
[1726407871683,0.08571245,2420.9,2420.7,1.29730492]
[1726407872205,0.08571245,2420.9,2420.6,1.72971731]
[1726407872206,0.08571245,2420.9,2420.8,3.74628484]
[1726407883316,3.25567469,2420.9,2420.8,3.74628484]
[1726407883658,3.25567469,2420.9,2420.8,0.86522755]
[1726407884435,3.25567469,2420.9,2420.7,1.29730492]
[1726407885317,3.25567469,2420.9,2420.8,3.7475789]
[1726407886539,7.38636469,2420.9,2420.8,3.7475789]
[1726407887315,7.38636469,2420.9,2420.8,0.86544613]
[1726407888019,7.38636469,2420.9,2420.8,0.86547622]
[1726407888224,6.71560245,2420.9,2420.8,0.86547622]
[1726407888625,6.71560245,2420.9,2420.7,1.29730492]
[1726407888825,6.71560245,2420.9,2420.8,3.74798395]
[1726407889125,6.71560245,2420.9,2420.8,3.74804485]
[1726407889557,6.71560245,2420.9,2420.8,0.86565021]
[1726407889868,6.71560245,2420.9,2420.8,3.74819627]
[1726407897871,0.08571245,2420.9,2420.8,3.74819627]
[1726407898082,0.08571245,2420.9,2420.8,2.45089135]
[1726407898276,0.08571245,2420.9,2420.8,8.71829212]
[1726407898579,4.13039,2421.1,2420.8,6.53620866]
[1726407898769,0.08088782,2420.9,2420.8,1.72971731]
[1726407898943,6.46799,2421.1,2420.8,4.18052238]
[1726407899143,0.08088782,2420.9,2420.8,1.72971731]
[1726407899396,6.46799,2421.1,2420.8,4.18049641]
[1726407899541,0.08088782,2420.9,2420.8,1.72971731]
[1726407899885,0.08088782,2420.9,2420.8,4.18040234]
[1726407900091,6.46799,2421.1,2420.8,4.18040234]
[1726407900367,6.46799,2421.1,2421.0,0.86571278]
[1726407901757,11.71217221,2421.1,2421.0,0.86571278]
[1726407902156,4.13052,2421.0,2420.9,0.86571278]
[1726407902780,4.18052005,2421.0,2420.9,0.86571278]
[1726407903070,5.35572043,2421.0,2420.9,0.86571278]
[1726407906504,5.30572038,2421.0,2420.9,0.86571278]
[1726407906704,5.35572043,2421.0,2420.9,0.86571278]
[1726407907184,6.43429,2420.9,2420.8,0.86571278]
[1726407907387,6.48429005,2420.9,2420.8,0.86571278]
[1726407908994,6.43429,2420.9,2420.8,0.86571278]
[1726407909223,6.48429005,2420.9,2420.8,0.86571278]
[1726407912416,6.56237813,2420.9,2420.8,0.86571278]
[1726407919141,7.63166794,2420.9,2420.8,0.86571278]
[1726407919418,4.13086,2420.8,2420.7,0.86571278]
[1726407919859,4.20885803,2420.8,2420.6,1.29856917]
[1726407920869,4.20885803,2420.8,2420.7,0.86589882]
[1726407921869,4.20885803,2420.8,2420.6,1.29856917]
[1726407922173,4.20885803,2420.8,2420.7,0.86588861]
[1726407922376,4.20885803,2420.8,2420.6,1.29856917]
[1726407923054,4.20885803,2420.8,2420.7,0.86587774]
[1726407923863,4.20885803,2420.8,2420.7,3.74954419]
[1726407924574,0.07799803,2420.8,2420.7,3.74954419]
[1726407924869,0.07799803,2420.8,2420.7,7.01480975]
[1726407925054,8.26116,2421.0,2420.7,7.01480975]
[1726407925260,8.26116,2421.0,2420.8,0.86583091]
[1726407925429,0.07807871,2420.9,2420.8,0.86583091]
[1726407929197,0.07807871,2420.9,2420.7,3.65766917]
[1726407929424,0.07807871,2420.9,2420.8,0.86584862]
[1726407930102,0.07807871,2420.9,2420.7,3.65766917]
[1726407930264,0.07807871,2420.9,2420.8,6.72980055]
[1726407930468,0.07807871,2420.9,2420.8,7.0783345]
[1726407930772,0.07797943,2420.9,2420.8,7.51318977]
[1726407930987,0.07797943,2420.9,2420.8,5.34861719]
[1726407931196,4.1699816,2421.2,2420.8,7.07971717]
[1726407931398,4.1699816,2421.2,2421.0,0.86557413]
[1726407931570,4.1699816,2421.2,2421.1,0.86557413]
[1726407932266,4.1699816,2421.2,2421.0,0.86557413]
[1726407932604,0.0397016,2421.2,2421.0,1.54495153]
[1726407932803,0.0397016,2421.2,2421.1,2.36]
[1726407933006,0.0397016,2421.2,2421.1,3.22533854]
[1726407933219,0.0397016,2421.2,2421.1,3.22520024]
[1726407933514,0.0397016,2421.2,2421.1,4.06038627]
[1726407936306,0.0397016,2421.2,2421.1,0.86520024]
[1726407936679,0.0397016,2421.2,2421.0,0.86520024]
[1726407936908,0.0397016,2421.2,2421.1,0.86520024]
[1726407937495,0.0397016,2421.2,2421.0,0.86520024]
[1726407941833,4.1699016,2421.2,2421.0,0.86520024]
[1726407942169,0.07517956,2421.1,2421.0,0.86520024]
[1726407942366,0.07517956,2421.1,2420.9,3.22520024]
[1726407942818,4.13052,2421.0,2420.9,0.86520024]
[1726407943270,4.2057257,2421.0,2420.9,0.86520024]
[1726407947419,0.0752057,2421.0,2420.9,0.86520024]
[1726407947623,0.0752057,2421.0,2420.9,3.24150024]
[1726407947781,8.3002216,2421.2,2420.9,3.24150024]
[1726407947986,0.07263373,2421.0,2420.9,3.24150024]
[1726407948296,4.1699016,2421.2,2420.9,3.24150024]
[1726407948499,4.13035,2421.1,2420.9,3.24150024]
[1726407948691,4.1699016,2421.2,2420.9,3.24150024]
[1726407948891,4.1699016,2421.2,2420.9,2.3763]
[1726407949188,0.07272378,2421.1,2421.0,0.86471604]
[1726407952029,0.07272378,2421.1,2420.9,3.24101604]
[1726407953739,0.07272378,2421.1,2421.0,0.86471604]
[1726407954085,0.07272378,2421.1,2420.9,0.86471604]
[1726407954989,4.20320378,2421.1,2420.9,0.86471604]
[1726407963213,4.79259347,2421.1,2420.9,0.86471604]
[1726407964536,4.13052,2421.0,2420.9,0.86471604]
[1726407964701,6.67560188,2421.0,2420.9,0.86471604]
[1726407964903,6.67560188,2421.0,2420.8,0.86471604]
[1726407965124,4.13069,2420.9,2420.8,0.86471604]
[1726407965298,8.33137183,2420.9,2420.8,0.86471604]
[1726407965499,8.33137183,2420.9,2420.7,0.86471604]
[1726407965500,4.13086,2420.8,2420.7,0.86471604]
[1726407965722,4.20076178,2420.8,2420.7,0.86471604]
[1726407965928,4.20076178,2420.8,2420.6,0.86471604]
[1726407974162,0.06990178,2420.8,2420.6,3.18341604]
[1726407974463,0.06990178,2420.8,2420.7,0.86471604]
[1726407979332,8.26085,2421.1,2420.7,0.86471604]
[1726407979668,0.06998609,2421.0,2420.8,0.86471604]
[1726407980655,4.20053609,2421.0,2420.8,0.86471604]
[1726407980966,4.20053609,2421.0,2420.7,0.86471604]
[1726407981131,2.3002,2420.9,2420.7,0.86471604]
[1726407981478,0.06980598,2420.8,2420.7,0.86471604]
[1726407989362,4.20066598,2420.8,2420.7,0.86471604]
[1726407989586,4.20066598,2420.8,2420.6,1.2983612]
[1726407989587,4.13103,2420.7,2420.6,0.86471604]
[1726407989796,4.19742521,2420.7,2420.6,0.86471604]
[1726407998194,4.19742521,2420.7,2420.5,1.2983612]
[1726407999193,4.19742521,2420.7,2420.6,3.74655286]
[1726408000130,4.19742521,2420.7,2420.6,0.86524589]
[1726408000338,4.19742521,2420.7,2420.5,1.2983612]
[1726408000539,4.19742521,2420.7,2420.6,3.74667357]
[1726408002937,0.06639521,2420.7,2420.6,6.06147357]
[1726408003143,0.06639521,2420.7,2420.6,4.76311237]
[1726408003345,4.13073,2420.9,2420.6,4.76311237]
[1726408003510,0.06413781,2420.7,2420.6,3.6128808]
[1726408003838,0.06413781,2420.7,2420.6,6.06155414]
[1726408004138,6.40573,2420.9,2420.6,6.06155414]
[1726408004295,0.06413781,2420.7,2420.6,3.45219554]
[1726408004499,6.40573,2420.9,2420.6,4.76366207]
[1726408004739,0.06413781,2420.7,2420.6,2.3148]
[1726408004923,6.40573,2420.9,2420.6,4.76367229]
[1726408005253,6.40573,2420.9,2420.8,0.86545746]
[1726408005448,4.13073,2420.9,2420.8,0.86545746]
[1726408008717,6.50873,2420.9,2420.8,0.86545746]
[1726408008940,7.62765506,2420.9,2420.8,0.86545746]
[1726408009563,11.75844506,2420.9,2420.8,0.86545746]
[1726408009748,4.13086,2420.8,2420.7,0.86545746]
[1726408009925,4.18086005,2420.8,2420.7,0.86545746]
[1726408011334,4.13086,2420.8,2420.7,0.86545746]
[1726408017260,4.19508788,2420.8,2420.7,0.86545746]
[1726408022107,4.24508793,2420.8,2420.7,0.86545746]
[1726408022296,4.19508788,2420.8,2420.7,0.86545746]
[1726408022908,9.44632972,2420.8,2420.7,0.86545746]
[1726408023071,4.13103,2420.7,2420.6,0.86545746]
[1726408023518,4.19523558,2420.7,2420.6,0.86545746]
[1726408024238,4.24523563,2420.7,2420.6,0.86545746]
[1726408024393,6.62323563,2420.7,2420.6,0.86545746]
[1726408024595,6.57323558,2420.7,2420.6,0.86545746]
[1726408027136,10.70426558,2420.7,2420.6,0.86545746]
[1726408027348,11.2624,2420.6,2420.5,0.86545746]
[1726408027642,11.2624,2420.6,2420.3,0.86545746]
[1726408027643,4.13154,2420.4,2420.3,0.86545746]
[1726408027933,10.80738005,2420.4,2420.3,0.86545746]
[1726408028134,10.87111858,2420.4,2420.3,0.86545746]
[1726408028343,12.46253949,2420.4,2420.3,0.86545746]
[1726408028547,4.19945949,2420.4,2420.1,0.86545746]
[1726408028835,4.13206,2420.1,2420.0,0.86545746]
[1726408029023,4.24563817,2420.1,2420.0,0.86545746]
[1726408029225,4.13223,2420.0,2419.9,1.29818619]
[1726408029392,4.1324,2419.9,2419.8,1.29818619]
[1726408029591,4.19579789,2419.9,2419.8,4.17863784]
[1726408029796,4.19579789,2419.9,2419.8,3.7452359]
[1726408029995,4.19579789,2419.9,2419.8,3.74516906]
[1726408030243,4.19579789,2419.9,2419.8,3.74516122]
[1726408031435,4.19579789,2419.9,2419.8,0.86459041]
[1726408031677,4.19579789,2419.9,2419.7,1.29762336]
[1726408031832,4.19579789,2419.9,2419.8,3.74356371]
[1726408032379,0.06339789,2419.9,2419.8,3.74356371]
[1726408032573,0.06339789,2419.9,2419.8,7.221678]
[1726408032878,0.0631151,2419.9,2419.8,7.22038726]
[1726408033175,0.0631151,2419.9,2419.8,5.92405464]
[1726408033554,4.1322,2420.1,2419.8,7.22020818]
[1726408033783,4.1322,2420.1,2420.0,0.86410406]
[1726408034641,4.1322,2420.1,2419.9,0.86410406]
[1726408036278,4.13179,2420.3,2419.9,1.49999982]
[1726408036438,4.13179,2420.3,2420.0,0.86410406]
[1726408038075,4.1319,2420.2,2420.0,0.86410406]
[1726408038623,4.13206,2420.1,2420.0,0.86410406]
[1726408038878,4.13223,2420.0,2419.9,0.86410406]
[1726408039285,4.1324,2419.9,2419.8,0.86410406]
[1726408039487,4.1324,2419.9,2419.7,0.86410406]
[1726408041587,4.1324,2419.9,2419.6,3.33170406]
[1726408041784,4.1324,2419.9,2419.7,0.86410406]
[1726408042142,4.1324,2419.9,2419.6,0.86410406]
[1726408042143,4.13274,2419.7,2419.6,0.86410406]
[1726408042366,4.13274,2419.7,2419.5,0.86410406]
[1726408042567,4.13274,2419.7,2419.3,1.73109998]
[1726408042568,4.13325,2419.4,2419.3,0.86410406]
[1726408042773,4.18325005,2419.4,2419.2,0.86410406]
[1726408042967,4.18325005,2419.4,2419.1,0.86410406]
[1726408043163,4.13347,2419.3,2419.0,3.33170406]
[1726408043406,4.13347,2419.3,2419.0,2.4676]
[1726408045880,4.1336,2419.2,2419.0,2.4676]
[1726408046198,4.1336,2419.2,2418.8,3.22350406]
[1726408046392,4.18347005,2419.3,2418.8,2.3594]
[1726408046599,4.13347,2419.3,2418.8,2.3594]
[1726408046765,4.13347,2419.3,2418.8,3.22350406]
[1726408046969,4.13347,2419.3,2418.8,3.7772215]
[1726408047168,0.0623445,2419.2,2418.8,3.7772215]
[1726408047465,4.13347,2419.3,2418.8,3.7772215]
[1726408047971,0.06248953,2419.2,2418.8,3.7772215]
[1726408048170,4.13347,2419.3,2418.8,4.78442841]
[1726408048371,0.06248953,2419.2,2418.8,4.78442841]
[1726408048572,4.13347,2419.3,2418.8,4.78442841]
[1726408048806,0.06248953,2419.2,2418.8,4.78442841]